bitfinex/quotes_SOLUSD_20250823
["timestamp","ask_amount","ask_price","bid_price","bid_amount"]
[1755920135207,0.06,198.01,198.0,9.17443713]
[1755920135397,0.06,198.01,198.0,9.88443713]
[1755920136005,0.06,198.01,198.0,3.67372721]
[1755920136183,0.06,198.01,198.0,4.38372721]
[1755920136376,0.06,198.01,198.0,9.88443713]
[1755920136798,0.06,198.01,198.0,9.17443713]
[1755920137001,0.06,198.01,198.0,9.88443713]
[1755920137901,0.06,198.01,198.0,6.49503306]
[1755920138080,0.06,198.01,198.0,10.15913017]
[1755920138286,0.06,198.03,198.02,26.14216157]
[1755920138494,0.06,198.05,198.03,0.28432314]
[1755920138686,0.06,198.05,198.04,9.87480703]
[1755920139392,0.06,198.05,198.04,9.16480703]
[1755920140480,0.06,198.05,198.04,3.66409711]
[1755920140781,0.78,198.05,198.04,9.16480703]
[1755920141091,0.78,198.05,198.04,3.66409711]
[1755920141411,0.78,198.05,198.03,5.50070992]
[1755920141606,0.72,198.04,198.03,5.50070992]
[1755920141810,0.72,198.04,198.03,9.15837801]
[1755920142107,0.06,198.05,198.03,9.15837801]
[1755920142308,0.06,198.05,198.04,5.50070992]
[1755920142811,0.06,198.05,198.04,9.1563428]
[1755920143184,0.06,198.05,198.04,5.50070992]
[1755920143517,0.78,198.05,198.04,5.50070992]
[1755920146116,0.06,198.05,198.04,5.50070992]
[1755920146793,0.06,198.05,198.04,9.86328968]
[1755920147393,0.06,198.05,198.04,9.15328968]
[1755920147894,0.06,198.05,198.04,3.65257976]
[1755920148210,0.06,198.05,198.04,9.15059601]
[1755920148506,0.06,198.05,198.04,9.14871739]
[1755920148717,0.06,198.05,198.04,9.85871739]
[1755920148903,0.06,198.05,198.04,9.14834654]
[1755920150112,0.06,198.05,198.04,9.85834654]
[1755920150291,0.06,198.05,198.04,9.14834654]
[1755920150984,0.06,198.05,198.04,9.85834654]
[1755920152010,0.06,198.05,198.04,9.85592957]
[1755920154607,0.06,198.05,198.04,10.14025271]
[1755920156613,0.06,198.05,198.04,9.43025271]
[1755920156830,0.06,198.05,198.04,10.14025271]
[1755920157196,0.06,198.05,198.04,9.43025271]
[1755920158606,0.06,198.05,198.04,10.14025271]
[1755920160736,0.1,198.08,198.07,39.87991715]
[1755920160908,0.06,198.1,198.08,13.87991715]
[1755920161254,0.06,198.11,198.1,0.28432314]
[1755920161415,0.06,198.11,198.1,35.41948461]
[1755920161616,0.06,198.11,198.1,36.12948461]
[1755920162631,0.06,198.11,198.1,35.41948461]
[1755920162824,0.06,198.11,198.1,29.91877469]
[1755920163017,0.06,198.11,198.1,35.13516147]
[1755920163519,0.78,198.11,198.1,31.50070992]
[1755920164127,0.78,198.11,198.1,35.13612586]
[1755920165646,0.06,198.11,198.1,35.13612586]
[1755920169350,0.06,198.11,198.1,35.08910464]
[1755920170028,0.06,198.11,198.1,35.79910464]
[1755920171713,0.06,198.11,198.1,36.08342778]
[1755920172124,0.06,198.11,198.1,75.46342778]
[1755920172739,0.78,198.11,198.1,29.58839472]
[1755920172934,0.78,198.11,198.1,35.08910464]
[1755920173449,0.06,198.11,198.1,35.08910464]
[1755920176047,0.78,198.11,198.1,35.08910464]
[1755920176556,0.78,198.11,198.1,29.58839472]
[1755920176849,0.78,198.11,198.1,35.08910464]
[1755920177140,0.06,198.11,198.1,35.08910464]
[1755920177345,0.78,198.11,198.1,35.08910464]
[1755920177851,0.06,198.11,198.1,35.08910464]
[1755920178253,0.06,198.11,198.1,31.50070992]
[1755920178430,0.06,198.11,198.1,29.60021055]
[1755920178824,0.06,198.11,198.1,31.50070992]
[1755920179033,0.06,198.11,198.1,35.1009603]
[1755920179554,0.78,198.11,198.1,35.1009603]
[1755920180417,0.78,198.11,198.1,29.60025038]
[1755920180638,0.78,198.11,198.1,35.1009603]
[1755920182453,0.78,198.11,198.1,29.60025038]
[1755920182624,0.78,198.11,198.1,9.1009603]
[1755920182826,0.78,198.11,198.1,3.60025038]
[1755920183356,0.78,198.11,198.1,9.1009603]
[1755920184454,0.78,198.11,198.1,9.1309603]
[1755920186160,64.2840047,198.11,198.1,2.28025038]
[1755920186329,60.12062707,198.11,198.1,0.03]
[1755920186531,62.42087807,198.11,198.1,0.03]
[1755920187346,67.46857884,198.11,198.1,0.03]
[1755920188136,13.87991715,198.09,198.08,0.03]
[1755920188343,19.38062707,198.09,198.08,0.03]
[1755920188528,46.01062707,198.09,198.08,0.03]
[1755920188721,20.01062707,198.09,198.08,0.03]
[1755920188920,25.05883747,198.09,198.08,0.03]
[1755920189522,65.05883747,198.09,198.08,0.03]
[1755920189827,25.05883747,198.09,198.08,0.03]
[1755920190026,59.99062707,198.09,198.08,0.03]
[1755920190257,65.03883747,198.09,198.08,0.03]
[1755920193160,13.87991715,198.07,198.06,0.03]
[1755920193448,13.87991715,198.07,198.03,0.03]
[1755920193449,39.87991715,198.04,198.03,0.03]
[1755920193624,39.87991715,198.04,197.99,0.03]
[1755920193625,13.87991715,198.02,197.99,0.03]
[1755920193825,5.50070992,198.0,197.99,0.03]
[1755920194026,59.07630393,198.0,197.99,0.03]
[1755920194229,45.48070992,198.0,197.99,0.03]
[1755920194937,46.11070992,198.0,197.99,0.03]
[1755920195454,19.72630393,198.0,197.99,0.03]
[1755920195629,59.72630393,198.0,197.99,0.03]
[1755920196043,64.77680898,198.0,197.99,0.03]
[1755920196234,59.70630393,198.0,197.99,0.03]
[1755920197336,64.75680898,198.0,197.99,0.03]
[1755920197750,59.70630393,198.0,197.99,0.03]
[1755920198738,19.09630393,198.0,197.99,0.03]
[1755920198962,59.07630393,198.0,197.99,0.03]
[1755920199644,59.05630393,198.0,197.99,0.03]
[1755920200560,59.03630393,198.0,197.99,0.03]
[1755920201266,45.44070992,198.0,197.99,0.03]
[1755920201635,46.07070992,198.0,197.99,0.03]
[1755920201842,5.50070992,198.0,197.99,0.03]
[1755920202155,45.44070992,198.0,197.99,0.03]
[1755920203965,5.50070992,198.0,197.99,0.03]
[1755920204261,6.13070992,198.0,197.99,0.03]
[1755920204442,46.03070992,198.0,197.99,0.03]
[1755920204842,45.40070992,198.0,197.99,0.03]
[1755920211345,5.50070992,198.0,197.99,0.03]
[1755920211542,45.32070992,198.0,197.99,0.03]
[1755920211750,39.82,198.0,197.99,0.03]
[1755920211955,45.32070992,198.0,197.99,0.03]
[1755920213663,45.28070992,198.0,197.99,0.03]
[1755920218384,5.50070992,198.0,197.99,0.03]
[1755920218679,45.87070992,198.0,197.99,0.03]
[1755920218978,47.89361892,198.0,197.99,0.03]
[1755920219389,47.26361892,198.0,197.99,0.03]
[1755920220284,134.4,198.01,197.99,0.73]
[1755920220452,39.72,198.0,197.99,0.73]
[1755920221478,5.50070992,198.0,197.99,0.03]
[1755920221677,45.22070992,198.0,197.99,0.03]
[1755920222087,45.22070992,198.0,197.99,0.73]
[1755920222495,45.22070992,198.0,197.99,0.03]
[1755920225974,45.20070992,198.0,197.99,0.73]
[1755920226176,45.20070992,198.0,197.99,0.03]
[1755920227169,45.20070992,198.0,197.99,0.73]
[1755920227696,45.20070992,198.0,197.99,0.03]
[1755920228971,45.18070992,198.0,197.99,0.03]
[1755920230884,5.50070992,198.0,197.99,0.03]
[1755920231060,45.16070992,198.0,197.99,0.03]
[1755920232267,64.43680898,198.0,197.99,0.03]
[1755920232564,66.72434912,198.0,197.99,0.03]
[1755920233183,2.023217,198.0,197.99,0.03]
[1755920233491,45.12070992,198.0,197.99,0.03]
[1755920233686,47.14372192,198.0,197.99,0.03]
[1755920235497,52.19422697,198.0,197.99,0.03]
[1755920236316,41.643012,198.0,197.99,0.03]
[1755920236499,47.14372192,198.0,197.99,0.03]
[1755920236995,7.52372192,198.0,197.99,0.03]
[1755920237293,47.16372192,198.0,197.99,0.03]
[1755920237894,7.52372192,198.0,197.99,0.03]
[1755920238093,47.14372192,198.0,197.99,0.03]
[1755920238478,52.19422697,198.0,197.99,0.03]
[1755920238686,66.70414412,198.0,197.99,0.03]
[1755920239397,72.20485404,198.0,197.99,0.03]
[1755920240202,61.2034342,198.0,197.99,0.03]
[1755920240400,55.52292915,198.0,197.99,0.03]
[1755920240695,61.02363907,198.0,197.99,0.03]
[1755920241305,66.07414412,198.0,197.99,0.03]
[1755920241598,66.05414412,198.0,197.99,0.03]
[1755920242587,61.00363907,198.0,197.99,0.03]
[1755920243401,84.47070992,197.98,197.97,0.03]
[1755920243601,45.08070992,197.98,197.97,0.03]
[1755920244009,47.10392692,197.98,197.97,0.03]
[1755920246285,47.10392692,197.98,197.97,0.73]
[1755920246694,47.10392692,197.98,197.97,0.03]
[1755920247202,47.04392692,197.98,197.97,0.03]
[1755920247396,7.52392692,197.98,197.97,0.03]
[1755920247587,47.04392692,197.98,197.97,0.03]
[1755920248208,65.97485932,197.98,197.97,0.03]
[1755920251610,39.54,197.98,197.97,0.75]
[1755920251796,45.04070992,197.98,197.97,0.75]
[1755920252906,45.02070992,197.98,197.97,0.75]
[1755920253095,5.50070992,197.98,197.97,0.75]
[1755920253294,45.00070992,197.98,197.97,0.75]
[1755920253793,5.50070992,197.98,197.97,0.75]
[1755920253998,45.00070992,197.98,197.97,0.75]
[1755920254603,5.50070992,197.98,197.97,0.75]
[1755920254916,45.00070992,197.98,197.97,0.75]
[1755920256488,5.50070992,197.98,197.97,0.75]
[1755920256690,39.5,197.98,197.97,0.75]
[1755920256887,5.50070992,197.98,197.97,0.75]
[1755920257114,44.98070992,197.98,197.97,0.75]
[1755920257612,45.08070992,197.98,197.97,0.03]
[1755920257823,44.98070992,197.98,197.97,0.03]
[1755920257987,50.03172517,197.98,197.97,0.03]
[1755920258189,63.86948075,197.98,197.97,0.03]
[1755920258519,67.85802137,197.98,197.97,0.03]
[1755920258716,64.22107175,197.98,197.97,0.03]
[1755920258890,62.70700612,197.98,197.97,0.03]
[1755920259104,58.92008377,197.98,197.97,0.03]
[1755920259615,71.06016662,197.98,197.97,0.03]
[1755920259813,69.03694962,197.98,197.97,0.75]
[1755920260322,31.52356815,197.98,197.97,0.75]
[1755920260622,71.04356815,197.98,197.97,0.75]
[1755920261922,31.52356815,197.98,197.97,0.75]
[1755920262117,71.02356815,197.98,197.97,0.75]
[1755920262824,39.5,197.98,197.97,0.75]
[1755920263023,7.60658015,198.01,197.97,4.2128411]
[1755920263196,2.083012,198.01,197.97,0.03]
[1755920263400,39.5,198.0,197.98,0.72]
[1755920263808,39.5,197.99,197.98,0.72]
[1755920264026,5.58356815,198.01,197.98,0.72]
[1755920264323,39.5,198.0,197.98,0.72]
[1755920264721,5.58356815,198.01,197.99,0.72]
[1755920264918,39.5,198.0,197.97,0.03]
[1755920265113,39.5,197.99,197.97,0.03]
[1755920265422,39.5,197.98,197.97,0.03]
[1755920265630,39.48,197.98,197.97,3.52082036]
[1755920266103,39.48,197.98,197.97,4.24082036]
[1755920268307,39.48,197.98,197.97,4.24071931]
[1755920268931,39.48,197.98,197.97,4.24151946]
[1755920269433,39.48,197.98,197.97,4.24114238]
[1755920269809,0.06,197.99,197.97,9.76471053]
[1755920270012,0.06,197.99,197.98,9.73471053]
[1755920270326,39.54,197.99,197.98,4.21114238]
[1755920270623,39.54,197.99,197.98,9.73471053]
[1755920274025,0.06,197.99,197.98,9.73471053]
[1755920274928,0.06,197.99,197.98,9.72855225]
[1755920275717,0.06,197.99,197.98,55.13203755]
[1755920275927,0.06,198.01,198.0,0.28432314]
[1755920276234,0.06,198.03,198.02,0.28432314]
[1755920276437,39.54,198.05,198.02,10.01287539]
[1755920276627,39.54,198.05,198.04,5.52356815]
[1755920276832,39.54,198.05,198.04,9.72855225]
[1755920278036,39.54,198.05,198.04,9.72024347]
[1755920278236,0.06,198.05,198.04,9.72024347]
[1755920280538,0.06,198.05,198.04,10.00456661]
[1755920280747,0.06,198.05,198.04,23.60016062]
[1755920280928,0.06,198.11,198.08,13.59559401]
[1755920281128,0.06,198.11,198.09,13.87991715]
[1755920281351,0.06,198.11,198.1,35.28456661]
[1755920281646,0.06,198.11,198.1,36.00456661]
[1755920282740,0.06,198.15,198.14,10.0]
[1755920282945,0.7,198.38,198.22,26.0]
[1755920283247,2.019437,198.38,198.32,26.0]
[1755920283424,6.33368919,198.4,198.33,0.28432314]
[1755920283922,6.22356815,198.39,198.33,5.52356815]
[1755920284238,5.52356815,198.36,198.25,0.28432314]
[1755920284446,39.94,198.35,198.32,5.52356815]
[1755920284653,0.7,198.34,198.3,5.52356815]
[1755920284814,5.63368919,198.4,198.34,13.59559401]
[1755920285017,5.63368919,198.4,198.33,5.52356815]
[1755920285018,5.63368919,198.4,198.39,26.0]
[1755920285220,5.63368919,198.4,198.39,45.4034853]
[1755920285455,5.63368919,198.4,198.34,26.0]
[1755920285627,6.33368919,198.4,198.37,5.52356815]
[1755920286142,0.7,198.39,198.38,3.67984126]
[1755920286517,0.7,198.39,198.37,5.52356815]
[1755920286842,0.7,198.39,198.38,3.67253999]
[1755920287944,6.22356815,198.39,198.38,3.67253999]
[1755920289034,6.22356815,198.39,198.34,5.52356815]
[1755920289232,0.7,198.38,198.35,3.66408881]
[1755920289445,11.15725734,198.4,198.34,5.52356815]
[1755920289446,5.63368919,198.4,198.39,26.0]
[1755920289744,5.63368919,198.4,198.39,35.4719801]
[1755920290420,5.63368919,198.4,198.39,57.4719801]
[1755920291930,5.63368919,198.4,198.39,71.06757411]
[1755920292453,40.96,198.49,198.44,0.28432314]
[1755920292652,40.26,198.52,198.48,5.52356815]
[1755920292859,40.26,198.52,198.49,3.66408881]
[1755920293169,0.7,198.51,198.5,3.66408881]
[1755920293752,0.7,198.51,198.47,5.52356815]
[1755920293963,0.7,198.51,198.48,3.63259709]
[1755920294161,0.7,198.51,198.49,3.13259709]
[1755920294374,0.7,198.51,198.47,5.52356815]
[1755920294947,6.22356815,198.51,198.43,26.0]
[1755920295148,40.26,198.52,198.44,5.52356815]
[1755920295149,0.7,198.5,198.44,5.52356815]
[1755920295347,6.22356815,198.5,198.44,5.52356815]
[1755920295540,0.7,198.49,198.44,5.52356815]
[1755920296057,0.7,198.49,198.43,26.0]
[1755920296394,0.7,198.49,198.46,5.52356815]
[1755920296550,0.7,198.49,198.47,5.52356815]
[1755920296869,40.88,198.51,198.48,5.52356815]
[1755920297171,0.7,198.5,198.47,5.52356815]
[1755920297349,0.7,198.49,198.47,5.52356815]
[1755920297548,40.18,198.51,198.47,5.52356815]
[1755920297761,0.7,198.5,198.47,5.52356815]
[1755920297952,40.18,198.51,198.47,5.52356815]
[1755920298253,0.7,198.49,198.46,5.52356815]
[1755920298468,0.7,198.48,198.46,5.52356815]
[1755920298641,0.7,198.47,198.45,5.52356815]
[1755920300084,0.7,198.47,198.43,26.0]
[1755920300280,0.7,198.47,198.45,5.52356815]
[1755920300858,5.52356815,198.5,198.44,5.52356815]
[1755920300859,0.7,198.46,198.44,5.52356815]
[1755920301584,46.42356815,198.45,198.31,0.03]
[1755920301875,5.52356815,198.39,198.32,15.135844]
[1755920302071,5.52356815,198.39,198.34,5.52356815]
[1755920302072,0.7,198.38,198.34,5.52356815]
[1755920302260,0.7,198.37,198.32,5.52356815]
[1755920302583,0.7,198.36,198.32,5.52356815]
[1755920302887,0.7,198.36,198.31,31.52356815]
[1755920303966,0.7,198.36,198.31,5.52356815]
[1755920304180,0.7,198.35,198.31,31.52356815]
[1755920304480,0.7,198.35,198.31,26.0]
[1755920304654,40.36,198.39,198.26,0.03]
[1755920304655,8.46283569,198.33,198.26,0.03]
[1755920304853,8.46283569,198.32,198.26,8.46283569]
[1755920305174,8.46283569,198.31,198.25,8.46283569]
[1755920305679,0.7,198.32,198.25,8.46283569]
[1755920305862,8.46283569,198.31,198.25,8.46283569]
[1755920306056,9.16283569,198.3,198.24,8.46283569]
[1755920306272,9.16283569,198.3,198.27,26.0]
[1755920306568,0.7,198.29,198.28,3.63607339]
[1755920307373,8.46283569,198.3,198.28,3.63607339]
[1755920307686,8.46283569,198.3,198.27,26.0]
[1755920307687,9.14283569,198.3,198.29,3.63607339]
[1755920308194,0.68,198.3,198.29,3.63607339]
[1755920308379,9.14283569,198.3,198.29,3.63607339]
[1755920309264,9.14283569,198.3,198.27,26.0]
[1755920309466,9.14283569,198.3,198.28,3.64470954]
[1755920309684,9.14283569,198.3,198.29,3.64470954]
[1755920310582,0.68,198.3,198.29,3.64470954]
[1755920311367,9.14283569,198.3,198.29,3.64470954]
[1755920313384,49.40283569,198.3,198.29,3.65664678]
[1755920314285,49.40283569,198.3,198.29,2.93664678]
[1755920314502,54.44570003,198.3,198.29,1.49664678]
[1755920314673,54.44570003,198.3,198.29,1.37664678]
[1755920315373,62.90853572,198.3,198.25,0.03]
[1755920315570,8.46283569,198.26,198.25,0.03]
[1755920315786,48.70283569,198.26,198.25,0.03]
[1755920315985,49.29283569,198.26,198.25,0.03]
[1755920317609,40.83,198.26,198.25,0.03]
[1755920317900,40.24,198.26,198.25,0.03]
[1755920318476,26.59,198.32,198.25,0.03]
[1755920318677,0.59,198.35,198.29,0.03]
[1755920318924,40.24,198.34,198.29,0.03]
[1755920319276,48.72283569,198.33,198.3,0.65]
[1755920319678,40.26,198.32,198.3,0.65]
[1755920319990,36.34,198.37,198.31,0.65]
[1755920319991,40.26,198.33,198.31,0.65]
[1755920320301,40.28,198.33,198.31,0.65]
[1755920320607,40.28,198.33,198.32,0.65]
[1755920320802,40.28,198.33,198.29,9.14283569]
[1755920320990,40.28,198.33,198.3,0.65]
[1755920321299,40.28,198.33,198.29,8.49283569]
[1755920321300,40.28,198.33,198.31,0.65]
[1755920321484,40.28,198.33,198.29,0.03]
[1755920321800,40.28,198.32,198.29,0.03]
[1755920322188,8.46283569,198.31,198.29,0.03]
[1755920322590,8.46283569,198.3,198.29,0.03]
[1755920323183,48.74283569,198.3,198.29,0.03]
[1755920324608,8.46283569,198.3,198.29,0.03]
[1755920324825,48.74283569,198.3,198.29,0.03]
[1755920325781,79.0,198.33,198.29,0.03]
[1755920326129,8.46283569,198.3,198.29,0.03]
[1755920326486,8.46283569,198.3,198.29,3.73861337]
[1755920327111,40.24,198.3,198.29,4.38861337]
[1755920327313,8.46283569,198.33,198.29,4.38861337]
[1755920327495,40.24,198.32,198.3,4.35861337]
[1755920327698,40.24,198.32,198.31,3.70861337]
[1755920328515,40.24,198.32,198.31,3.71250722]
[1755920328696,8.46283569,198.33,198.31,3.71250722]
[1755920328896,8.46283569,198.34,198.32,3.71250722]
[1755920329098,8.46283569,198.34,198.33,3.71250722]
[1755920329308,48.66283569,198.34,198.33,3.71250722]
[1755920330212,40.18,198.34,198.33,4.36250722]
[1755920331012,48.64283569,198.34,198.33,4.36250722]
[1755920331212,48.64283569,198.34,198.33,3.71250722]
[1755920331723,48.64283569,198.34,198.33,3.71263543]
[1755920332413,45.6818595,198.34,198.33,3.71263543]
[1755920334020,40.18,198.34,198.33,4.36263543]
[1755920335389,40.24,198.34,198.33,4.36263543]
[1755920337409,40.18,198.34,198.33,4.36263543]
[1755920338518,40.18,198.34,198.33,3.71263543]
[1755920340219,40.77,198.34,198.33,3.71263543]
[1755920340604,40.18,198.34,198.29,26.03]
[1755920340806,40.18,198.34,198.3,3.71976469]
[1755920341114,40.18,198.34,198.31,3.71976469]
[1755920341316,40.18,198.34,198.32,4.37976469]
[1755920341511,40.18,198.34,198.33,3.71976469]
[1755920342612,40.1,198.34,198.33,3.71976469]
[1755920343013,0.06,198.34,198.33,3.71976469]
[1755920343215,40.08,198.34,198.33,3.71976469]
[1755920343813,0.06,198.34,198.33,3.71976469]
[1755920344011,40.08,198.34,198.33,3.71976469]
[1755920347424,0.06,198.34,198.33,3.71976469]
[1755920347602,40.02,198.34,198.33,3.71976469]
[1755920349020,40.02,198.34,198.33,3.73891764]
[1755920352618,45.5218595,198.34,198.33,3.73891764]
[1755920354527,40.02,198.34,198.33,4.39891764]
[1755920354722,39.94,198.34,198.33,4.39891764]
[1755920355515,0.06,198.34,198.33,4.39891764]
[1755920355711,39.94,198.34,198.33,4.39891764]
[1755920356127,0.06,198.34,198.33,4.39891764]
[1755920356343,39.92,198.34,198.33,4.39891764]
[1755920356912,0.06,198.34,198.33,4.39891764]
[1755920357126,39.92,198.34,198.33,4.39891764]
[1755920358017,0.06,198.34,198.33,4.39891764]
[1755920358217,0.06,198.34,198.33,4.39578291]
[1755920358424,39.9,198.34,198.33,4.39578291]
[1755920360039,39.88,198.34,198.33,4.39578291]
[1755920360617,39.88,198.34,198.33,3.73578291]
[1755920360818,45.3818595,198.34,198.33,3.73578291]
[1755920361232,45.3818595,198.34,198.33,3.73910381]
[1755920365431,45.9718595,198.34,198.33,3.73910381]
[1755920365855,40.47,198.34,198.33,3.73910381]
[1755920366140,45.9718595,198.34,198.33,3.73910381]
[1755920367122,45.3818595,198.34,198.33,3.73910381]
[1755920367318,45.3818595,198.34,198.33,3.74477331]
[1755920367823,5.5618595,198.34,198.33,3.74477331]
[1755920368026,45.2818595,198.34,198.33,3.74477331]
[1755920369138,5.5618595,198.34,198.33,3.74477331]
[1755920369331,45.2818595,198.34,198.33,3.74477331]
[1755920370224,45.2818595,198.34,198.31,0.71]
[1755920370425,5.5018595,198.33,198.32,3.74700124]
[1755920374549,39.78,198.34,198.32,4.45700124]
[1755920374723,39.78,198.34,198.33,3.74700124]
[1755920375618,0.06,198.34,198.33,3.74700124]
[1755920375819,45.2018595,198.34,198.33,3.74700124]
[1755920376454,5.5618595,198.34,198.33,3.75008629]
[1755920376639,45.2018595,198.34,198.33,3.75008629]
[1755920377033,45.2018595,198.34,198.33,3.75024423]
[1755920379347,45.2018595,198.34,198.33,4.46024423]
[1755920379739,45.7918595,198.34,198.33,3.75024423]
[1755920380219,13.59559401,198.33,198.29,0.03]
[1755920380424,5.5018595,198.3,198.29,0.03]
[1755920380639,45.1418595,198.3,198.29,0.03]
[1755920380945,45.7318595,198.3,198.29,0.03]
[1755920382223,6.0918595,198.3,198.29,0.03]
[1755920382430,50.75472384,198.3,198.29,0.03]
[1755920382840,13.59559401,198.29,198.27,0.03]
[1755920383040,45.1218595,198.28,198.27,0.03]
[1755920383238,45.7118595,198.28,198.27,0.03]
[1755920385535,50.7552325,198.28,198.27,0.03]
[1755920385734,79.0,198.27,198.25,0.03]
[1755920385939,50.623719,198.26,198.25,0.03]
[1755920386138,51.213719,198.26,198.25,0.03]
[1755920386858,51.213719,198.26,198.19,0.71]
[1755920387028,5.5018595,198.2,198.18,0.71]
[1755920387229,45.1218595,198.19,198.18,0.71]
[1755920389862,39.62,198.19,198.18,0.71]
[1755920390163,45.1218595,198.19,198.18,0.71]
[1755920390764,45.1218595,198.19,198.16,0.71]
[1755920390941,5.5018595,198.18,198.17,0.71]
[1755920391143,5.5018595,198.18,198.15,26.0]
[1755920391345,39.58,198.17,198.15,26.0]
[1755920391548,45.0818595,198.17,198.14,26.0]
[1755920391751,5.5018595,198.15,198.11,2.63706669]
[1755920392081,39.6,198.14,198.13,0.71]
[1755920392253,39.6,198.14,198.13,4.33627467]
[1755920393168,45.1018595,198.14,198.13,4.33627467]
[1755920394181,26.0,198.22,198.13,4.33627467]
[1755920394341,26.0,198.22,198.14,3.62235393]
[1755920394544,5.5018595,198.18,198.15,0.71]
[1755920394765,39.6,198.17,198.15,0.71]
[1755920394944,39.6,198.16,198.15,0.71]
[1755920395146,39.6,198.16,198.15,4.33196055]
[1755920395352,39.6,198.16,198.15,4.33097849]
[1755920395555,39.6,198.16,198.15,0.71]
[1755920397576,45.1018595,198.16,198.15,0.71]
[1755920397967,39.6,198.16,198.15,0.71]
[1755920399883,5.5018595,198.17,198.15,0.71]
[1755920400087,39.6,198.16,198.12,26.0]
[1755920400389,39.6,198.16,198.13,3.61819371]
[1755920400686,79.0,198.21,198.14,0.71]
[1755920400851,45.1018595,198.2,198.14,9.83005321]
[1755920401057,45.1018595,198.2,198.15,4.32819371]
[1755920401258,45.1018595,198.2,198.14,5.5018595]
[1755920401259,5.5018595,198.19,198.16,0.71]
[1755920401583,39.6,198.18,198.17,0.71]
[1755920402088,45.1018595,198.18,198.14,0.71]
[1755920402270,5.5018595,198.17,198.14,0.71]
[1755920402583,0.59,198.2,198.15,0.03]
[1755920402584,45.1018595,198.16,198.15,0.03]
[1755920402755,45.1018595,198.16,198.15,0.74]
[1755920404094,39.6,198.16,198.15,0.74]
[1755920404691,45.1018595,198.16,198.15,0.74]
[1755920404854,45.1018595,198.16,198.15,0.03]
[1755920405050,5.5018595,198.16,198.15,0.03]
[1755920405254,45.1018595,198.16,198.15,0.03]
[1755920405764,45.1018595,198.16,198.15,0.74]
[1755920405967,39.6,198.16,198.15,0.74]
[1755920406882,79.0,198.19,198.15,0.74]
[1755920406883,39.6,198.17,198.15,4.3465633]
[1755920407181,39.6,198.17,198.15,0.74]
[1755920407385,39.6,198.17,198.16,0.71]
[1755920410183,5.5018595,198.18,198.16,0.71]
[1755920410382,40.19,198.17,198.15,0.03]
[1755920410684,5.5018595,198.16,198.15,0.03]
[1755920410868,6.0918595,198.16,198.15,0.03]
[1755920411281,5.5018595,198.16,198.15,0.03]
[1755920411495,6.0918595,198.16,198.15,0.03]
[1755920415886,45.6918595,198.16,198.15,0.03]
[1755920417994,13.59559401,198.15,198.11,0.03]
[1755920418175,5.5018595,198.12,198.11,0.03]
[1755920418489,45.1018595,198.12,198.11,0.03]
[1755920418668,45.6918595,198.12,198.11,0.03]
[1755920419068,45.1018595,198.12,198.11,0.03]
[1755920420072,39.6,198.12,198.11,0.03]
[1755920420279,45.1018595,198.12,198.11,0.74]
[1755920422990,45.1018595,198.12,198.11,0.03]
[1755920423192,45.1018595,198.12,198.11,3.65054104]
[1755920424397,40.19,198.12,198.11,3.65054104]
[1755920424570,45.6918595,198.12,198.11,3.65054104]
[1755920426177,6.0918595,198.12,198.11,3.65054104]
[1755920426905,45.6918595,198.12,198.11,3.65054104]
[1755920427200,45.6918595,198.12,198.11,0.03]
[1755920428594,50.603719,198.12,198.11,0.03]